bitfinex/quotes_BTCUSD_20250127
["timestamp","ask_amount","ask_price","bid_price","bid_amount"]
[1738004507590,1.89674333,99560.0,99559.0,0.00033857]
[1738004507591,2.04740533,99560.0,99559.0,0.00033857]
[1738004507831,2.14575262,99560.0,99559.0,0.00033857]
[1738004508036,2.04840533,99560.0,99559.0,0.00033857]
[1738004509378,2.05840533,99560.0,99559.0,0.00033857]
[1738004509624,2.59890533,99560.0,99559.0,0.00033857]
[1738004510171,2.59890533,99560.0,99559.0,3.857e-05]
[1738004510415,2.19840533,99560.0,99559.0,3.857e-05]
[1738004510698,2.19740533,99560.0,99559.0,3.857e-05]
[1738004511123,2.19740533,99560.0,99559.0,0.0003353]
[1738004511329,1.20209384,99560.0,99559.0,0.0003353]
[1738004511489,2.19840533,99560.0,99559.0,0.0003353]
[1738004511694,2.19740533,99560.0,99559.0,0.0003353]
[1738004512695,2.20740533,99560.0,99559.0,0.0003353]
[1738004513112,2.42875262,99560.0,99559.0,0.0003353]
[1738004513328,2.44775262,99560.0,99514.0,0.150732]
[1738004513549,0.150721,99522.0,99515.0,0.09734729]
[1738004513754,0.00100939,99521.0,99515.0,0.09734729]
[1738004513956,1.85030753,99522.0,99516.0,0.150728]
[1738004514166,1.85030753,99522.0,99517.0,0.24807429]
[1738004514373,1.85030753,99522.0,99517.0,0.09734729]
[1738004514574,1.85030753,99522.0,99519.0,0.150724]
[1738004514780,1.85030753,99522.0,99520.0,0.24807029]
[1738004515029,0.001,99521.0,99520.0,0.09734729]
[1738004515454,0.001,99521.0,99520.0,0.24807029]
[1738004516873,1.49800153,99522.0,99521.0,0.150721]
[1738004517134,1.85030223,99522.0,99521.0,0.09734729]
[1738004517310,1.49900153,99522.0,99521.0,0.24806829]
[1738004517506,1.49800153,99522.0,99521.0,0.24806829]
[1738004519535,1.49900153,99522.0,99521.0,0.24806829]
[1738004519686,1.49800153,99522.0,99521.0,0.09734729]
[1738004519896,1.64872153,99522.0,99521.0,0.09734729]
[1738004520054,1.74606882,99522.0,99521.0,0.005]
[1738004520257,2.09841682,99522.0,99521.0,0.005]
[1738004520460,1.85034953,99522.0,99490.0,0.01023773]
[1738004520670,1.85034953,99522.0,99491.0,0.09734729]
[1738004520671,0.54830939,99521.0,99491.0,0.09734729]
[1738004520901,0.300771,99488.0,99487.0,0.00044506]
[1738004521215,2.19747153,99488.0,99487.0,0.00044506]
[1738004521698,2.20747153,99488.0,99487.0,0.00044506]
[1738004521905,2.19747153,99488.0,99487.0,0.00044506]
[1738004522312,1.89670053,99488.0,99487.0,0.09779235]
[1738004522517,1.85050053,99488.0,99487.0,0.09779235]
[1738004523325,1.49800153,99488.0,99487.0,0.24856535]
[1738004523523,1.50000153,99488.0,99487.0,0.24856535]
[1738004523944,1.49800153,99488.0,99487.0,0.24856535]
[1738004524147,1.50000153,99488.0,99487.0,0.24856535]
[1738004524777,1.50000153,99488.0,99487.0,0.09779235]
[1738004525074,1.50000153,99488.0,99487.0,0.24856535]
[1738004525319,0.50469004,99488.0,99487.0,0.42156535]
[1738004525539,0.99531149,99495.0,99487.0,0.43202724]
[1738004525747,0.99531149,99495.0,99494.0,0.09734729]
[1738004525964,0.99531149,99495.0,99494.0,0.27110929]
[1738004527163,0.99531149,99495.0,99494.0,0.27310929]
[1738004527513,0.99531149,99495.0,99494.0,0.27110929]
[1738004528486,0.99531149,99495.0,99494.0,0.27210929]
[1738004529051,0.99531149,99495.0,99494.0,0.42510929]
[1738004529253,0.99531149,99495.0,99494.0,0.42210929]
[1738004529453,0.50269004,99500.0,99499.0,0.150755]
[1738004529674,0.50269004,99500.0,99499.0,0.27110229]
[1738004529883,0.50269004,99500.0,99499.0,0.42110229]
[1738004530042,0.99531149,99505.0,99504.0,0.150747]
[1738004530435,0.99531149,99505.0,99504.0,0.42209913]
[1738004530641,0.99531149,99505.0,99504.0,0.42109429]
[1738004531648,0.99531149,99505.0,99504.0,0.43143206]
[1738004531854,0.99531149,99505.0,99504.0,0.25009429]
[1738004532573,0.99531149,99505.0,99504.0,0.24809429]
[1738004532893,0.99531149,99505.0,99504.0,0.25009429]
[1738004533317,0.99631149,99505.0,99504.0,0.25809429]
[1738004533902,0.99531149,99505.0,99504.0,0.25009429]
[1738004534106,0.99531149,99505.0,99504.0,0.27909429]
[1738004534328,0.99531149,99505.0,99504.0,0.27709429]
[1738004534528,0.99531149,99505.0,99504.0,0.27109429]
[1738004534750,0.99531149,99505.0,99504.0,0.27209429]
[1738004535141,0.99531149,99505.0,99504.0,0.27109429]
[1738004535548,0.99531149,99505.0,99504.0,0.27209429]
[1738004535745,0.99531149,99505.0,99504.0,0.42209429]
[1738004535946,0.46289472,99510.0,99509.0,0.32374]
[1738004536145,0.0001414,99522.0,99520.0,0.15]
[1738004536343,0.0001414,99522.0,99521.0,0.4220729]
[1738004536546,0.99531149,99531.0,99521.0,0.4220729]
[1738004536547,0.99531149,99531.0,99522.0,0.173]
[1738004536837,0.200841,99581.0,99521.0,0.27034729]
[1738004536838,0.01863755,99530.0,99529.0,0.323709]
[1738004537034,2.5e-07,99530.0,99529.0,0.42105629]
[1738004537508,2.5e-07,99530.0,99529.0,0.44124111]
[1738004537710,0.99531174,99530.0,99529.0,0.44124111]
[1738004537914,0.50269004,99546.0,99530.0,0.173]
[1738004538090,1.49814961,99546.0,99545.0,0.27103229]
[1738004539290,1.49814961,99546.0,99545.0,0.27203229]
[1738004539503,1.49814961,99546.0,99545.0,0.43231913]
[1738004539742,0.99531149,99558.0,99550.0,0.02]
[1738004539943,0.99531149,99558.0,99557.0,0.42101429]
[1738004541883,0.99531149,99558.0,99557.0,0.24801429]
[1738004542508,0.99531149,99558.0,99557.0,0.25001429]
[1738004542716,0.99531149,99558.0,99557.0,0.24801429]
[1738004543109,0.99531149,99558.0,99557.0,0.27301429]
[1738004543956,0.99531149,99558.0,99557.0,0.24801429]
[1738004544152,0.99531149,99558.0,99557.0,0.09734729]
[1738004544582,1.34748619,99558.0,99557.0,0.09734729]
[1738004545003,1.34748619,99558.0,99557.0,0.24801429]
[1738004545339,1.34748619,99558.0,99557.0,0.09934729]
[1738004545543,1.34748619,99558.0,99557.0,0.24801429]
[1738004545749,1.34748619,99558.0,99557.0,0.25001429]
[1738004545750,0.99531149,99558.0,99557.0,0.25001429]
[1738004546334,0.99531149,99558.0,99557.0,0.42301429]
[1738004546578,0.50269004,99560.0,99559.0,0.300664]
[1738004546916,0.50269004,99560.0,99559.0,0.42101129]
[1738004547543,0.99531149,99571.0,99560.0,0.173]
[1738004547745,0.0481,99609.0,99568.0,0.32365]
[1738004547746,0.49742042,99569.0,99568.0,0.32365]
[1738004547949,0.99560125,99593.0,99592.0,0.150614]
[1738004548156,0.99560125,99593.0,99592.0,0.39796129]
[1738004548366,0.99560125,99593.0,99592.0,0.42096129]
[1738004548573,0.00028976,99593.0,99592.0,0.42096129]
[1738004549612,0.00028976,99593.0,99592.0,0.43131848]
[1738004549831,7.6e-07,99593.0,99592.0,0.44031848]
[1738004550233,7.6e-07,99593.0,99592.0,0.45031848]
[1738004550873,7.6e-07,99593.0,99592.0,0.47008099]
[1738004551292,7.6e-07,99593.0,99592.0,0.46808099]
[1738004551492,7.6e-07,99593.0,99592.0,0.46108099]
[1738004551698,7.6e-07,99593.0,99592.0,0.46508099]
[1738004551901,7.6e-07,99593.0,99592.0,0.58028099]
[1738004552306,7.6e-07,99593.0,99592.0,0.60028099]
[1738004552458,7.6e-07,99593.0,99592.0,0.49408099]
[1738004552659,0.99531149,99625.0,99621.0,0.30057]
[1738004552862,0.00063588,99622.0,99621.0,0.42091729]
[1738004553281,0.00063588,99622.0,99621.0,0.43150527]
[1738004553889,8.8e-07,99622.0,99621.0,0.43150527]
[1738004554333,0.50269004,99644.0,99643.0,0.323537]
[1738004554532,0.01666667,99647.0,99645.0,0.323534]
[1738004554735,0.99545289,99646.0,99645.0,0.42088129]
[1738004554941,0.99560126,99646.0,99645.0,0.42088129]
[1738004556338,0.99560126,99646.0,99645.0,0.27088129]
[1738004556563,0.99560126,99646.0,99645.0,0.27588129]
[1738004557875,0.99560126,99646.0,99645.0,0.10334729]
[1738004558083,0.99560126,99646.0,99645.0,0.24888129]
[1738004558260,0.99560126,99646.0,99645.0,0.27188129]
[1738004558515,0.99560126,99646.0,99645.0,0.27088129]
[1738004559074,0.99550152,99646.0,99645.0,0.27088129]
[1738004559483,0.99550152,99646.0,99645.0,0.27388129]
[1738004560389,0.99550152,99646.0,99645.0,0.28413033]
[1738004560992,0.99550152,99646.0,99645.0,0.28113033]
[1738004561197,0.99550152,99646.0,99645.0,0.28613033]
[1738004561551,0.99550152,99646.0,99645.0,0.28213033]
[1738004562377,0.99550152,99646.0,99645.0,0.28613033]
[1738004562735,0.99550152,99646.0,99645.0,0.28213033]
[1738004562946,0.99550152,99646.0,99645.0,0.28613033]
[1738004563617,0.99550152,99646.0,99645.0,0.26313033]
[1738004563806,0.99550152,99646.0,99645.0,0.41313033]
[1738004564008,0.99550152,99646.0,99645.0,0.43613033]
[1738004564412,0.99550152,99646.0,99645.0,0.43513033]
[1738004564774,0.99550152,99646.0,99645.0,0.43113033]
[1738004565219,0.99550152,99646.0,99645.0,0.43513033]
[1738004565483,0.99550152,99646.0,99645.0,0.43113033]
[1738004565689,0.99550152,99646.0,99645.0,0.43713033]
[1738004566753,0.00014837,99646.0,99645.0,0.43713033]
[1738004566964,0.99545986,99646.0,99645.0,0.43613033]
[1738004567180,0.00014837,99646.0,99645.0,0.43613033]
[1738004567383,0.50269004,99662.0,99661.0,0.32351]
[1738004567593,0.99531149,99674.0,99673.0,0.323492]
[1738004567796,0.99531149,99674.0,99673.0,0.42083929]
[1738004569178,0.99531149,99674.0,99673.0,0.42583929]
[1738004569726,0.99531149,99674.0,99673.0,0.42083929]
[1738004569861,0.99531149,99674.0,99673.0,0.43427883]
[1738004570675,0.99531149,99674.0,99673.0,0.11078683]
[1738004570852,1.34710179,99674.0,99673.0,0.10034729]
[1738004571050,1.42940179,99674.0,99673.0,0.10034729]
[1738004571307,1.42940179,99674.0,99673.0,0.24883929]
[1738004571507,1.34605225,99674.0,99673.0,0.24883929]
[1738004571745,1.34605225,99674.0,99673.0,0.24783929]
[1738004572333,1.34605225,99674.0,99673.0,0.25183929]
[1738004572334,0.99376017,99674.0,99673.0,0.25183929]
[1738004572554,0.99390167,99674.0,99673.0,0.24783929]
[1738004572757,0.99545299,99674.0,99673.0,0.24783929]
[1738004572953,0.99545299,99674.0,99673.0,0.09734729]
[1738004573179,1.14594299,99674.0,99673.0,0.09734729]
[1738004573620,0.99545299,99674.0,99673.0,0.09734729]
[1738004574364,1.14594299,99674.0,99673.0,0.09734729]
[1738004575513,0.99545299,99674.0,99673.0,0.09734729]
[1738004576048,1.14594299,99674.0,99673.0,0.09734729]
[1738004578042,0.1239,99673.0,99644.0,0.200713]
[1738004578240,0.1239,99673.0,99650.0,0.09734729]
[1738004578466,0.1239,99673.0,99647.0,0.200708]
[1738004578467,0.20066,99671.0,99657.0,0.150515]
[1738004578677,0.00100939,99670.0,99658.0,0.09734729]
[1738004579275,0.00100939,99670.0,99658.0,0.24734729]
[1738004579456,0.00100939,99670.0,99662.0,0.150507]
[1738004579648,0.35280009,99671.0,99663.0,0.09734729]
[1738004580098,0.150505,99664.0,99663.0,0.09734729]
[1738004580355,1.49800153,99664.0,99625.0,0.0010035]
[1738004580565,0.00100939,99663.0,99647.0,0.200708]
[1738004580729,1.49800153,99664.0,99652.0,0.09734729]
[1738004580949,1.49800153,99664.0,99663.0,0.150507]
[1738004581113,1.49800153,99664.0,99663.0,0.24785429]
[1738004582180,1.49800153,99664.0,99663.0,0.09734729]
[1738004582525,1.49800153,99664.0,99663.0,0.24785429]
[1738004582908,1.49800153,99664.0,99663.0,0.39785429]
[1738004585398,1.49800153,99664.0,99663.0,0.42085429]
[1738004585560,1.49800153,99664.0,99663.0,0.39785429]
[1738004585925,1.49800153,99664.0,99663.0,0.39815144]
[1738004586584,1.49800153,99664.0,99663.0,0.09764444]
[1738004586585,1.64850653,99664.0,99663.0,0.09764444]
[1738004586927,1.84980023,99664.0,99663.0,0.09764444]
[1738004587129,1.84980023,99664.0,99663.0,0.24815144]
[1738004587458,1.84980023,99664.0,99663.0,0.09764444]
[1738004587674,1.84980023,99664.0,99663.0,0.00029715]
[1738004587675,2.12180523,99664.0,99663.0,0.00029715]
[1738004588244,2.21915252,99664.0,99663.0,0.00029715]
[1738004588380,2.21915252,99664.0,99645.0,0.00029715]
[1738004588381,0.150532,99646.0,99645.0,0.00029715]
[1738004588603,2.37297052,99646.0,99645.0,0.00029715]
[1738004588808,2.38196113,99646.0,99645.0,0.00029715]
[1738004589017,2.27196113,99646.0,99645.0,0.00029715]
[1738004589226,2.12196113,99646.0,99645.0,0.00029715]
[1738004589841,0.200716,99643.0,99617.0,0.15]
[1738004590094,1.97142913,99646.0,99634.0,0.09734729]
[1738004590095,1.61950153,99646.0,99634.0,0.09734729]
[1738004590335,1.49800153,99646.0,99645.0,0.150534]
[1738004590543,1.49800153,99646.0,99645.0,0.24788129]
[1738004591612,1.49900153,99646.0,99645.0,0.24788129]
[1738004591829,1.49800153,99646.0,99645.0,0.24788129]
[1738004592246,1.49800153,99646.0,99645.0,0.41133582]
[1738004592455,1.49800153,99646.0,99645.0,0.43133582]
[1738004592659,0.99531149,99646.0,99645.0,0.43133582]
[1738004592863,0.99531149,99646.0,99645.0,0.43333582]
[1738004593892,0.99531149,99646.0,99645.0,0.43533582]
[1738004594109,0.99531149,99646.0,99645.0,0.43333582]
[1738004595037,0.99531149,99646.0,99645.0,0.43833582]
[1738004595236,0.99531149,99646.0,99645.0,0.43333582]
[1738004595673,0.99531149,99646.0,99645.0,0.44033582]
[1738004596936,0.50269004,99662.0,99661.0,0.30051]
[1738004597134,0.97524349,99662.0,99661.0,0.42085729]
[1738004597340,0.99531149,99671.0,99670.0,0.323496]
[1738004597653,0.50269004,99672.0,99671.0,0.323495]
[1738004597858,0.50269004,99672.0,99671.0,0.42084229]
[1738004598447,5e-07,99674.0,99673.0,0.300492]
[1738004598679,0.50269004,99678.0,99677.0,0.323486]
[1738004598820,0.50269004,99678.0,99677.0,0.42083329]
[1738004599037,0.50283833,99678.0,99677.0,0.42083329]
[1738004599240,0.50283833,99678.0,99677.0,0.39783329]
[1738004599441,0.50283833,99678.0,99677.0,0.24783329]
[1738004600060,0.50283833,99678.0,99677.0,0.24983329]
[1738004600507,0.5027857,99678.0,99677.0,0.39983329]
[1738004600725,0.5027857,99678.0,99677.0,0.39783329]
[1738004600934,0.5027857,99678.0,99677.0,0.39883329]
[1738004601086,0.5027857,99678.0,99677.0,0.42183329]
[1738004601500,0.5027857,99678.0,99677.0,0.42583329]
[1738004602334,0.5027857,99678.0,99677.0,0.42083329]
[1738004602494,0.5027857,99678.0,99677.0,0.42283329]
[1738004603339,0.5027857,99678.0,99677.0,0.42083329]
[1738004603571,0.5027857,99678.0,99677.0,0.42983329]
[1738004603778,2.9e-07,99678.0,99677.0,0.42983329]
[1738004603959,2.9e-07,99678.0,99677.0,0.42283329]
[1738004604187,2.9e-07,99678.0,99677.0,0.42983329]
[1738004606385,2.9e-07,99678.0,99677.0,0.42783329]
[1738004606585,2.9e-07,99678.0,99677.0,0.40483329]
[1738004606785,2.9e-07,99678.0,99677.0,0.40083329]
[1738004606986,2.9e-07,99678.0,99677.0,0.40983329]
[1738004607191,2.9e-07,99678.0,99677.0,0.40683329]
[1738004607409,2.9e-07,99678.0,99677.0,0.39783329]
[1738004607589,2.9e-07,99678.0,99677.0,0.40183329]
[1738004607791,2.9e-07,99678.0,99677.0,0.25183329]
[1738004608018,2.9e-07,99678.0,99677.0,0.24783329]
[1738004608351,2.9e-07,99678.0,99677.0,0.25683329]
[1738004608531,2.9e-07,99678.0,99677.0,0.24883329]
[1738004608934,2.9e-07,99678.0,99677.0,0.24783329]
[1738004609320,2.9e-07,99678.0,99677.0,0.24873329]
[1738004609520,0.50269004,99684.0,99683.0,0.150477]
[1738004609720,1.49800153,99684.0,99683.0,0.24782429]
[1738004610526,1.49800153,99684.0,99683.0,0.42082429]
[1738004611229,1.49800153,99684.0,99683.0,0.42482429]
[1738004611431,1.49800153,99684.0,99683.0,0.39782429]
[1738004611809,1.49800153,99684.0,99683.0,0.40482429]
[1738004612018,1.49800153,99684.0,99683.0,0.40582429]
[1738004612218,1.49814303,99684.0,99683.0,0.40582429]
[1738004612419,1.49814303,99684.0,99683.0,0.40482429]
[1738004612629,1.49814303,99684.0,99683.0,0.25482429]
[1738004612999,1.49814303,99684.0,99683.0,0.24782429]
[1738004613382,1.49814303,99684.0,99683.0,0.24982429]
[1738004613586,1.49814303,99684.0,99683.0,0.24782429]
[1738004613966,1.64861803,99684.0,99683.0,0.09934729]
[1738004614264,1.49814303,99684.0,99683.0,0.24982429]
[1738004614481,1.49814303,99684.0,99683.0,0.24782429]
[1738004614685,1.49814303,99684.0,99683.0,0.09934729]
[1738004615090,1.49814303,99684.0,99683.0,0.24782429]
[1738004615296,1.49814303,99684.0,99683.0,0.09734729]
[1738004615711,1.49814303,99684.0,99683.0,0.24782429]
[1738004615917,1.49814303,99684.0,99683.0,0.09734729]
[1738004616137,1.59549032,99684.0,99683.0,0.09734729]
[1738004616345,1.49814303,99684.0,99640.0,0.19422764]
[1738004616563,1.64861803,99684.0,99683.0,0.002]
[1738004616763,2.00035763,99684.0,99683.0,0.002]
[1738004617192,2.00035763,99684.0,99668.0,0.00014829]
[1738004617193,0.150498,99669.0,99668.0,0.00014829]
[1738004617388,2.00028523,99669.0,99668.0,0.09749558]
[1738004617815,2.00028523,99669.0,99668.0,0.00014829]
[1738004618019,2.23378068,99669.0,99668.0,0.00014829]
[1738004618220,2.12358523,99669.0,99668.0,0.00014829]
[1738004618840,2.18043452,99669.0,99645.0,0.00029715]
[1738004619046,0.232032,99646.0,99645.0,0.00029715]
[1738004619256,2.13150823,99646.0,99645.0,0.00029715]
[1738004619656,1.98097623,99646.0,99645.0,0.00029715]
[1738004619864,1.62910153,99646.0,99645.0,0.09764444]
[1738004620076,1.77963353,99646.0,99645.0,0.09764444]
[1738004620276,1.62910153,99646.0,99645.0,0.09764444]
[1738004620491,1.63010153,99646.0,99645.0,0.09764444]
[1738004620687,1.78063353,99646.0,99645.0,0.09764444]
[1738004621316,1.54860153,99646.0,99645.0,0.24817844]
[1738004621990,1.49900153,99646.0,99645.0,0.24817844]
[1738004622833,1.49900153,99646.0,99645.0,0.09764444]
[1738004622834,1.64853353,99646.0,99645.0,0.09764444]
[1738004623049,1.49900153,99646.0,99645.0,0.09764444]
[1738004623248,1.49900153,99646.0,99645.0,0.24817844]
[1738004623451,1.49800153,99646.0,99645.0,0.24817844]
[1738004623651,1.49900153,99646.0,99645.0,0.24817844]
[1738004624466,1.49800153,99646.0,99645.0,0.24817844]
[1738004625933,1.49800153,99646.0,99645.0,0.25117844]
[1738004626280,1.49800153,99646.0,99645.0,0.24817844]
[1738004626456,1.49900153,99646.0,99645.0,0.42117844]
[1738004626686,1.49900153,99646.0,99645.0,0.39817844]
[1738004626887,1.49800153,99646.0,99645.0,0.39817844]
[1738004627092,1.49900153,99646.0,99645.0,0.39817844]
[1738004627471,1.49800153,99646.0,99645.0,0.39817844]
[1738004627671,1.49800153,99646.0,99645.0,0.39917844]
[1738004628842,1.49800153,99646.0,99645.0,0.42117844]
[1738004629270,1.49800153,99646.0,99645.0,0.42217844]
[1738004629472,1.49800153,99646.0,99645.0,0.42117844]
[1738004629857,1.49800153,99646.0,99645.0,0.42417844]
[1738004630050,1.49800153,99646.0,99645.0,0.42217844]
[1738004630452,1.49800153,99646.0,99645.0,0.42617844]
[1738004630870,1.49800153,99646.0,99645.0,0.42217844]
[1738004631422,1.49800153,99646.0,99645.0,0.39817844]
[1738004631852,1.49800153,99646.0,99645.0,0.39917844]
[1738004632164,1.49800153,99646.0,99645.0,0.39817844]
[1738004632362,1.49800153,99646.0,99645.0,0.40417844]
[1738004632702,1.49800153,99646.0,99645.0,0.39917844]
[1738004632916,1.49800153,99646.0,99645.0,0.40117844]
[1738004633291,1.49800153,99646.0,99645.0,0.39817844]
[1738004633486,1.49800153,99646.0,99645.0,0.25017844]
[1738004634603,1.49800153,99646.0,99645.0,0.09964444]
[1738004634803,1.54770153,99646.0,99645.0,0.09964444]
[1738004635004,1.69823353,99646.0,99645.0,0.09964444]
[1738004635231,1.54770153,99646.0,99645.0,0.09964444]
[1738004635404,1.69823353,99646.0,99645.0,0.09964444]
[1738004635635,1.54770153,99646.0,99645.0,0.09964444]
[1738004635950,1.54770153,99646.0,99645.0,0.09764444]
[1738004636148,1.54870153,99646.0,99645.0,0.09764444]
[1738004636534,1.54770153,99646.0,99645.0,0.09764444]
[1738004636860,1.69923353,99646.0,99645.0,0.09764444]
[1738004637703,1.54870153,99646.0,99645.0,0.24817844]
[1738004638227,1.49900153,99646.0,99645.0,0.24817844]
[1738004638752,1.49900153,99646.0,99645.0,0.43137512]
[1738004639256,1.49800153,99646.0,99645.0,0.40837512]
[1738004639458,1.49900153,99646.0,99645.0,0.40837512]
[1738004639601,1.49800153,99646.0,99645.0,0.24817844]
[1738004640008,1.49900153,99646.0,99645.0,0.24817844]
[1738004640208,1.49800153,99646.0,99645.0,0.24817844]
[1738004641390,1.49800153,99646.0,99645.0,0.42117844]
[1738004642332,0.0478415,99684.0,99655.0,0.300519]
[1738004642333,0.50269004,99656.0,99655.0,0.300519]
[1738004642543,0.50269004,99656.0,99655.0,0.42086629]
[1738004642763,0.48262104,99656.0,99655.0,0.44086629]
[1738004642962,0.0001415,99684.0,99667.0,0.300501]
[1738004643167,0.0001415,99684.0,99683.0,0.323477]
[1738004643379,0.0001415,99684.0,99683.0,0.42082429]
[1738004643540,0.00014823,99684.0,99683.0,0.42082429]
[1738004644359,3.59e-05,99684.0,99683.0,0.42082429]
[1738004644575,0.99531149,99692.0,99688.0,0.15]
[1738004644787,0.50269004,99686.0,99685.0,0.32447601]
[1738004644981,0.50269004,99686.0,99685.0,0.42082029]
[1738004645398,0.99531149,99692.0,99691.0,0.323464]
[1738004645610,1.49800153,99692.0,99691.0,0.42081129]
[1738004646620,1.49800153,99692.0,99691.0,0.42281129]
[1738004647223,1.49800153,99692.0,99691.0,0.42981129]
[1738004649215,1.49800153,99692.0,99691.0,0.42781129]
[1738004649413,1.49800153,99692.0,99691.0,0.42081129]
[1738004649614,1.49814303,99692.0,99691.0,0.42181129]
[1738004649825,1.49814303,99692.0,99691.0,0.40381129]
[1738004650222,1.49814303,99692.0,99691.0,0.10334729]
[1738004650436,1.69480603,99692.0,99691.0,0.006]
[1738004650651,1.54434303,99692.0,99691.0,0.09834729]
[1738004651078,1.54434303,99692.0,99691.0,0.09734729]
[1738004651278,1.54434303,99692.0,99691.0,0.09834729]
[1738004651761,0.150477,99683.0,99672.0,0.150492]
[1738004652017,1.54434303,99692.0,99673.0,0.09749552]
[1738004652018,0.00100939,99682.0,99673.0,0.09749552]
[1738004652195,1.49901092,99682.0,99673.0,0.24798652]
[1738004652445,1.49901092,99682.0,99673.0,0.09749552]
[1738004652647,1.49901092,99682.0,99677.0,0.150485]
[1738004652823,1.49901092,99682.0,99678.0,0.09734729]
[1738004653063,1.49800153,99682.0,99678.0,0.09734729]
[1738004653280,1.49800153,99682.0,99681.0,0.15048]
[1738004653485,1.49800153,99682.0,99681.0,0.24782729]
[1738004655340,1.49800153,99682.0,99681.0,0.09734729]
[1738004655762,1.64847953,99682.0,99681.0,0.09734729]
[1738004655969,1.49800153,99682.0,99681.0,0.09734729]
[1738004656579,1.49800153,99682.0,99681.0,0.24782729]
[1738004656784,1.49800153,99682.0,99681.0,0.09734729]
[1738004657004,1.64847953,99682.0,99681.0,0.09734729]
[1738004657200,1.64847953,99682.0,99673.0,0.00014823]
[1738004657201,0.15049,99674.0,99673.0,0.00014823]
[1738004657405,0.15049,99674.0,99673.0,0.09749552]
[1738004657908,0.15049,99674.0,99673.0,0.00014823]
[1738004658124,0.32997783,99674.0,99673.0,0.00014823]
[1738004658325,0.27369,99674.0,99673.0,0.00014823]
[1738004659821,0.28400222,99674.0,99673.0,0.00014823]
[1738004660023,0.2838315,99674.0,99673.0,0.00014823]
[1738004660393,0.200688,99658.0,99644.0,0.150535]
[1738004660593,0.00100939,99657.0,99646.0,0.09734729]
[1738004660802,0.150518,99656.0,99646.0,0.09724729]
[1738004661021,1.49800153,99658.0,99657.0,0.150516]
[1738004661223,1.49800153,99658.0,99657.0,0.24786329]
[1738004662419,1.49800153,99658.0,99657.0,0.09734729]
[1738004662623,1.49800153,99658.0,99657.0,0.24786329]
[1738004663379,1.49800153,99658.0,99657.0,0.39786329]
[1738004664577,1.49800153,99658.0,99657.0,0.09734729]
[1738004664779,1.49800153,99658.0,99657.0,0.24786329]
[1738004665137,1.49800153,99658.0,99657.0,0.42086329]
[1738004665548,1.49800153,99658.0,99657.0,0.42186329]
[1738004665724,1.49800153,99658.0,99657.0,0.42086329]
[1738004666919,1.49800153,99658.0,99657.0,0.42186329]
[1738004667126,0.00013876,99674.0,99673.0,0.300492]
[1738004667339,0.00013876,99674.0,99673.0,0.42083929]
[1738004668718,0.00013876,99674.0,99673.0,0.42283929]
[1738004669509,0.00013876,99674.0,99673.0,0.42883929]
[1738004669722,0.99531149,99679.0,99674.0,0.173]
[1738004669917,0.0755415,99784.0,99704.0,0.01]
[1738004669918,0.50269004,99713.0,99704.0,0.01]
[1738004670114,0.99531149,99756.0,99743.0,0.27929047]
[1738004670318,0.0004951,99744.0,99743.0,0.42073329]
[1738004670500,0.99545299,99768.0,99767.0,0.30035]
[1738004670701,0.99545299,99768.0,99767.0,0.39769729]
[1738004670702,0.0001415,99768.0,99767.0,0.39769729]
[1738004670951,0.0001415,99768.0,99767.0,0.42069729]
[1738004671171,0.0001415,99769.0,99768.0,0.323348]
[1738004671377,0.0001415,99778.0,99770.0,0.323345]
[1738004671705,0.00063631,99771.0,99770.0,0.45993204]
[1738004671860,8.1e-07,99774.0,99773.0,0.300341]
[1738004672070,0.0001415,99782.0,99781.0,0.300329]
[1738004672309,0.00028042,99782.0,99781.0,0.39767629]
[1738004672702,0.00028042,99782.0,99781.0,0.37538075]
[1738004673270,0.00028042,99782.0,99781.0,0.37738075]
[1738004675042,0.50297046,99782.0,99781.0,0.22738075]
[1738004676457,0.50297046,99782.0,99781.0,0.09934729]
[1738004676672,0.50297046,99782.0,99781.0,0.24967629]
[1738004677069,0.50297046,99782.0,99781.0,0.09934729]
[1738004677277,0.50297046,99782.0,99781.0,0.24967629]
[1738004677478,0.50297046,99782.0,99781.0,0.09934729]
[1738004678097,0.50297046,99782.0,99781.0,0.24967629]
[1738004678701,0.50297046,99782.0,99781.0,0.09934729]
[1738004679106,0.65329746,99782.0,99781.0,0.09934729]
[1738004679311,0.50297046,99782.0,99781.0,0.24967629]
[1738004679533,0.50297046,99782.0,99781.0,0.09934729]
[1738004679952,0.50297046,99782.0,99781.0,0.24967629]
[1738004680152,0.50297046,99782.0,99781.0,0.09734729]
[1738004680359,0.50297046,99782.0,99781.0,0.24767629]
[1738004680556,0.50297046,99782.0,99781.0,0.24967629]
[1738004680753,0.50297046,99782.0,99781.0,0.09934729]
[1738004681167,0.65329746,99782.0,99781.0,0.09934729]
[1738004681367,0.50297046,99782.0,99781.0,0.09934729]
[1738004681568,0.50297046,99782.0,99781.0,0.24967629]
[1738004682185,0.50297046,99782.0,99781.0,0.24767629]
[1738004682947,0.50297046,99782.0,99781.0,0.24967629]
[1738004683159,0.50297046,99782.0,99781.0,0.09934729]
[1738004683782,0.50297046,99782.0,99781.0,0.09734729]
[1738004684113,0.50297046,99782.0,99781.0,0.24767629]
[1738004685752,0.65329746,99782.0,99781.0,0.09734729]
[1738004685956,0.65329746,99782.0,99767.0,0.20076173]
[1738004685957,0.50297046,99782.0,99767.0,0.00029673]
[1738004686196,0.150348,99768.0,99767.0,0.00029673]
[1738004686361,1.64935892,99768.0,99767.0,0.09764402]
[1738004686588,1.64834953,99768.0,99767.0,0.09764402]
[1738004686919,1.64834953,99768.0,99767.0,0.09754402]
[1738004687052,1.64824953,99768.0,99767.0,0.09754402]
[1738004687480,1.64824953,99768.0,99767.0,0.09854402]
[1738004687688,1.72654953,99768.0,99767.0,0.09854402]
[1738004688309,1.72654953,99768.0,99767.0,0.00119673]
[1738004688721,0.150379,99748.0,99733.0,0.200533]
[1738004688915,0.15139039,99747.0,99740.0,0.24773629]
[1738004689307,0.00100939,99747.0,99740.0,0.09734729]
[1738004689521,0.150385,99744.0,99740.0,0.09734729]
[1738004689727,0.15139439,99744.0,99740.0,0.09734729]
[1738004689959,0.150389,99741.0,99740.0,0.09734729]
[1738004690181,0.200549,99727.0,99717.0,0.150425]
[1738004690457,0.00100939,99726.0,99719.0,0.09734729]
[1738004690682,0.00100939,99726.0,99720.0,0.15042]
[1738004690911,1.49800153,99727.0,99726.0,0.150412]
[1738004691147,1.49800153,99727.0,99726.0,0.09734729]
[1738004691377,1.84957473,99727.0,99726.0,0.09734729]
[1738004691599,1.99998473,99727.0,99726.0,0.09734729]
[1738004691832,1.49800153,99727.0,99726.0,0.09734729]
[1738004692079,1.64841153,99727.0,99726.0,0.09734729]
[1738004692970,1.64841153,99727.0,99726.0,0.09834729]
[1738004693174,1.49800153,99727.0,99726.0,0.09834729]
[1738004693589,1.64841153,99727.0,99726.0,0.09834729]
[1738004695252,1.64841153,99727.0,99726.0,0.001]
[1738004695512,1.64841153,99727.0,99671.0,0.395987]
[1738004695513,1.59534882,99727.0,99671.0,0.075]
[1738004695775,0.00100939,99726.0,99694.0,0.09734729]